{"text_format":"1","workbook":"xlsx","n_sheets":2,"sheets":["mark","ورقة2"],"not_rendered":{"charts":0,"images":0,"macros":1,"external_links":2,"defined_names":8,"comments":0,"pivot_tables":0},"unopened":[],"bounds":{"document_bytes":16777216,"sheet_cells":100000,"rows_first":2000,"rows_last":500,"rows_between":2000,"halvings":0,"cell_chars":16384,"cell_head_chars":4096},"cells_cut":0,"cells_raw":0,"read":"whole","date_system":"1900"}

{"sheet":"mark","index":0,"n_rows":892,"n_cols":157,"rows_kept":892,"cut":false,"hidden":false,"merged":[[0,14,0,16],[1,3,1,5],[1,6,1,7],[1,8,1,16],[0,10,0,13],[0,6,0,7],[0,8,0,9],[1,138,1,146],[1,148,1,156],[2,1,5,1],[2,2,5,2],[2,8,2,10],[2,11,2,13],[2,14,4,14],[2,15,4,15],[2,16,4,16],[2,18,2,20],[1,78,1,86],[1,88,1,96],[1,98,1,106],[1,108,1,116],[1,118,1,126],[1,128,1,136],[1,18,1,26],[1,28,1,36],[1,38,1,46],[1,48,1,56],[1,58,1,66],[1,68,1,76],[2,34,4,34],[2,35,4,35],[2,36,4,36],[2,38,2,40],[2,41,2,43],[2,44,4,44],[2,21,2,23],[2,24,4,24],[2,25,4,25],[2,26,4,26],[2,28,2,30],[2,31,2,33],[2,56,4,56],[2,58,2,60],[2,61,2,63],[2,64,4,64],[2,65,4,65],[2,66,4,66],[3,58,3,60],[3,61,3,63],[2,45,4,45],[2,46,4,46],[2,48,2,50],[2,51,2,53],[2,54,4,54],[2,55,4,55],[3,48,3,50],[3,51,3,53],[2,68,2,70],[2,71,2,73],[2,74,4,74],[2,75,4,75],[2,76,4,76],[2,78,2,80],[3,68,3,70],[3,71,3,73],[3,78,3,80],[2,81,2,83],[2,84,4,84],[2,85,4,85],[2,86,4,86],[2,88,2,90],[2,91,2,93],[3,81,3,83],[3,88,3,90],[3,91,3,93],[3,108,3,110],[3,111,3,113],[2,94,4,94],[2,95,4,95],[2,96,4,96],[2,98,2,100],[2,101,2,103],[2,104,4,104],[3,98,3,100],[3,101,3,103],[3,3,5,3],[3,4,5,4],[3,5,5,5],[3,6,5,6],[3,7,5,7],[3,8,3,10],[3,11,3,13],[2,141,2,143],[2,144,4,144],[3,141,3,143],[2,128,2,130],[2,131,2,133],[2,134,4,134],[2,135,4,135],[2,136,4,136],[2,138,2,140],[3,128,3,130],[3,131,3,133],[3,138,3,140],[2,116,4,116],[2,118,2,120],[2,121,2,123],[2,124,4,124],[2,125,4,125],[3,18,3,20],[3,21,3,23],[3,28,3,30],[3,31,3,33],[3,38,3,40],[3,41,3,43],[2,154,4,154],[2,155,4,155],[2,156,4,156],[2,145,4,145],[2,146,4,146],[2,148,2,150],[2,151,2,153],[3,148,3,150],[3,151,3,153],[2,126,4,126],[3,118,3,120],[3,121,3,123],[2,105,4,105],[2,106,4,106],[2,108,2,110],[2,111,2,113],[2,114,4,114],[2,115,4,115]]}
[null,null,"الإحصاء",null,null,null,"عدد الطلبة :",null,{"$f":"MAX(B:B )","v":50},null,"العام الدراسي :",null,null,null,"2022-2021",null,null,null,null,null,null,null,null,null,null,null,null,null,null,null,null,null,null,null,null,null,null,null,null,null,null,null,null,null,null,null,null,null,null,null,null,null,null,null,null,null,null,null,null,null,null,null,null,null,null,null,null,null,null,null,null,null,null,null,null,null,null,null,null,null,null,null,null,null,null,null,null,null,null,null,null,null,null,null,null,null,null,null,"."]
["العام",null,null,null,null,null,"العام",null,"درجات مادة التربية الإسلامية",null,null,null,null,null,null,null,null,null,"درجات مادة اللغة العربية",null,null,null,null,null,null,null,null,null,"درجات مادة اللغة الإنجليزية",null,null,null,null,null,null,null,null,null,"درجات مادة تقنية المعلومات",null,null,null,null,null,null,null,null,null,"درجات مادة الرياضيات",null,null,null,null,null,null,null,null,null,"درجات مادة الأحصـــــــــــاء",null,null,null,null,null,null,null,null,null,"درجات مادة الفــــــــيزياء",null,null,null,null,null,null,null,null,null,"درجات مادة الكيمــــــــاء",null,null,null,null,null,null,null,null,null,"درجات مادة الأحيــــــــــاء",null,null,null,null,null,null,null,null,null,"درجات مادة التاريــــــــــخ",null,null,null,null,null,null,null,null,null,"درجات مادة الجغرافيــــــــا ",null,null,null,null,null,null,null,null,null,"درجات مادة الفلسفــــــــة ",null,null,null,null,null,null,null,null,null,"درجات مادة علم الاجتمـــــــــاع ",null,null,null,null,null,null,null,null,null,"درجات مادة علم النفـــــــــس",null,null,null,null,null,null,null,null,null,"درجات مادة "]
["العلمي","رقم مسلسل",null,null,null,null,"أنثى","3/2","عدد الحصص",null,null,2,null,null,"مجمــوع أعمـــال السنــة","مجموع درجتي الأمتحان","المجمــــــوع الكلـــــــي",null,"عدد الحصص",null,null,{"$f":"IF(G2=\"الأدبي\",9,5)","v":5},null,null,"مجمــوع أعمـــال السنــة","مجموع درجتي الأمتحان","المجمــــــوع الكلـــــــي",null,"عدد الحصص",null,null,{"$f":"IF(G2=\"الأدبي\",6,5)","v":5},null,null,"مجمــــوع أعمـــال السنة","مجموع درجتي الأمتحان","المجمــــــوع الكلـــــــي",null,"عدد الحصص",null,null,2,null,null,"مجمــــوع أعمـــال السنة","مجموع درجتي الأمتحان","المجمــــــوع الكلـــــــي",null,"عدد الحصص",null,null,5,null,null,"مجموع أعمال السنة","مجموع درجتي الأمتحان","المجمــــــوع الكلـــــــي",null,"عدد الحصص",null,null,{"$f":"IF(G2=\"العام\",\"\",2)","v":""},null,null,"مجمــــوع أعمـــال السنة","مجموع درجتي الأمتحان","المجمــــــوع الكلـــــــي",null,"عدد الحصص",null,null,{"$f":"IF(G2=\"الأدبي\",\"\",IF(G2=\"العام\",3,5))","v":3},null,null,"مجمــــوع أعمـــال السنة","مجموع درجتي الأمتحان","المجمــــــوع الكلـــــــي",null,"عدد الحصص",null,null,{"$f":"IF(G2=\"الأدبي\",\"\",IF(G2=\"العام\",3,4))","v":3},null,null,"مجمــــوع أعمـــال السنة","مجموع درجتي الأمتحان","المجمــــــوع الكلـــــــي",null,"عدد الحصص",null,null,{"$f":"IF(G2=\"الأدبي\",\"\",IF(G2=\"العام\",3,4))","v":3},null,null,"مجمــــوع أعمـــال السنة","مجموع درجتي الأمتحان","المجمــــــوع الكلـــــــي",null,"عدد الحصص",null,null,{"$f":"IF(G2=\"العلمي\",\"\",IF(G2=\"العام\",2,3))","v":2},null,null,"مجمــــوع أعمـــال السنة","مجموع درجتي الأمتحان","المجمــــــوع الكلـــــــي",null,"عدد الحصص",null,null,{"$f":"IF(G2=\"العلمي\",\"\",IF(G2=\"العام\",2,3))","v":2},null,null,"مجمــــوع أعمـــال السنة","مجموع درجتي الأمتحان","المجمــــــوع الكلـــــــي",null,"عدد الحصص",null,null,{"$f":"IF(G2=\"الأدبي\",2,\"\")","v":""},null,null,"مجمــــوع أعمـــال السنة","مجموع درجتي الأمتحان","المجمــــــوع الكلـــــــي",null,"عدد الحصص",null,null,{"$f":"IF(G2=\"العلمي\",\"\",IF(G2=\"العام\",1,2))","v":1},null,null,"مجمــــوع أعمـــال السنة","مجموع درجتي الأمتحان","المجمــــــوع الكلـــــــي",null,"عدد الحصص",null,null,{"$f":"IF(G2=\"الأدبي\",2,\"\")","v":""},null,null,"مجموع أعمال السنة","مجموع درجتي الأمتحان","المجمــــــوع الكلـــــــي",null,"عدد الحصص",null,null,null,null,null,"مجموع أعمال السنة","مجموع درجتي الأمتحان","المجمــــــوع الكلـــــــي"]
["الأدبي",null,null,"الجنــــــــــــــــــــــــــس","الفصـــــــــــــــــــــــــــل","التخصـــــــــــــــــــــــص","رقــم الجلــــــــــــــــــوس","الرقـــــم الســــــــــــــــري","الفصل الأول",null,null,"الفصل الثاني",null,null,null,null,null,null,"الفصل الأول",null,null,"الفصل الثاني",null,null,null,null,null,null,"الفصل الأول",null,null,"الفصل الثاني",null,null,null,null,null,null,"الفصل الأول",null,null,"الفصل الثاني",null,null,null,null,null,null,"الفصل الأول",null,null,"الفصل الثاني",null,null,null,null,null,null,"الفصل الأول",null,null,"الفصل الثاني",null,null,null,null,null,null,"الفصل الأول",null,null,"الفصل الثاني",null,null,null,null,null,null,"الفصل الأول",null,null,"الفصل الثاني",null,null,null,null,null,null,"الفصل الأول",null,null,"الفصل الثاني",null,null,null,null,null,null,"الفصل الأول",null,null,"الفصل الثاني",null,null,null,null,null,null,"الفصل الأول",null,null,"الفصل الثاني",null,null,null,null,null,null,"الفصل الأول",null,null,"الفصل الثاني",null,null,null,null,null,null,"الفصل الأول",null,null,"الفصل الثاني",null,null,null,null,null,null,"الفصل الأول",null,null,"الفصل الثاني",null,null,null,null,null,null,"الفصل الأول",null,null,"الفصل الثاني"]
[null,null,null,null,null,null,null,null,"اعمـــــال السنة ","درجة الأمتحان","المجمــــــــــوع","اعمـــــال السنة ","درجة الأمتحان","المجمــــــــــوع",null,null,null,null,"اعمـــــال السنة ","درجة الأمتحان","المجمــــــــــوع","اعمـــــال السنة ","درجة الأمتحان","المجمــــــــــوع",null,null,null,null,"اعمـــــال السنة ","درجة الأمتحان","المجمــــــــــوع","اعمـــــال السنة ","درجة الأمتحان","المجمــــــــــوع",null,null,null,null,"اعمـــــال السنة ","درجة الأمتحان","المجمــــــــــوع","اعمـــــال السنة ","درجة الأمتحان","المجمــــــــــوع",null,null,null,null,"اعمـــــال السنة ","درجة الأمتحان","المجمــــــــــوع","اعمـــــال السنة ","درجة الأمتحان","المجمــــــــــوع",null,null,null,null,"اعمـــــال السنة ","درجة الأمتحان","المجمــــــــــوع","اعمـــــال السنة ","درجة الأمتحان","المجمــــــــــوع",null,null,null,null,"اعمـــــال السنة ","درجة الأمتحان","المجمــــــــــوع","اعمـــــال السنة ","درجة الأمتحان","المجمــــــــــوع",null,null,null,null,"اعمـــــال السنة ","درجة الأمتحان","المجمــــــــــوع","اعمـــــال السنة ","درجة الأمتحان","المجمــــــــــوع",null,null,null,null,"اعمـــــال السنة ","درجة الأمتحان","المجمــــــــــوع","اعمـــــال السنة ","درجة الأمتحان","المجمــــــــــوع",null,null,null,null,"اعمـــــال السنة ","درجة الأمتحان","المجمــــــــــوع","اعمـــــال السنة ","درجة الأمتحان","المجمــــــــــوع",null,null,null,null,"اعمـــــال السنة ","درجة الأمتحان","المجمــــــــــوع","اعمـــــال السنة ","درجة الأمتحان","المجمــــــــــوع",null,null,null,null,"اعمـــــال السنة ","درجة الأمتحان","المجمــــــــــوع","اعمـــــال السنة ","درجة الأمتحان","المجمــــــــــوع",null,null,null,null,"اعمـــــال السنة ","درجة الأمتحان","المجمــــــــــوع","اعمـــــال السنة ","درجة الأمتحان","المجمــــــــــوع",null,null,null,null,"اعمـــــال السنة ","درجة الأمتحان","المجمــــــــــوع","اعمـــــال السنة ","درجة الأمتحان","المجمــــــــــوع",null,null,null,null,"اعمـــــال السنة ","درجة الأمتحان","المجمــــــــــوع","اعمـــــال السنة ","درجة الأمتحان","المجمــــــــــوع"]
[null,null,null,null,null,null,null,null,20,20,40,20,20,40,40,40,80,null,{"$f":"IF(G2=\"العام\",50,IF(G2=\"العلمي\",30,40))","v":50},{"$f":"IF(G2=\"العام\",50,IF(G2=\"العلمي\",50,40))","v":50},{"$f":"S6+T6","v":100},{"$f":"IF(G2=\"العام\",50,IF(G2=\"العلمي\",50,40))","v":50},{"$f":"IF(G2=\"العام\",50,IF(G2=\"العلمي\",40,40))","v":50},{"$f":"V6+W6","v":100},{"$f":"S6+V6","v":100},{"$f":"T6+W6","v":100},{"$f":"Y6+Z6","v":200},null,{"$f":"IF(G2=\"العام\",50,IF(G2=\"العلمي\",20,30))","v":50},{"$f":"IF(G2=\"العام\",50,IF(G2=\"العلمي\",20,30))","v":50},{"$f":"AC6+AD6","v":100},{"$f":"IF(G2=\"العام\",50,IF(G2=\"العلمي\",20,30))","v":50},{"$f":"IF(G2=\"العام\",50,IF(G2=\"العلمي\",20,30))","v":50},{"$f":"AF6+AG6","v":100},{"$f":"AC6+AF6","v":100},{"$f":"AD6+AG6","v":100},{"$f":"AI6+AJ6","v":200},null,20,20,40,20,20,40,40,40,80,null,{"$f":"IF(G2=\"العام\",50,IF(G2=\"العلمي\",50,0))","v":50},{"$f":"IF(G2=\"العام\",50,IF(G2=\"العلمي\",50,0))","v":50},{"$f":"AW6+AX6","v":100},{"$f":"IF(G2=\"العام\",50,IF(G2=\"العلمي\",50,0))","v":50},{"$f":"IF(G2=\"العام\",50,IF(G2=\"العلمي\",50,0))","v":50},{"$f":"AZ6+BA6","v":100},{"$f":"AW6+AZ6","v":100},{"$f":"AX6+BA6","v":100},{"$f":"BC6+BD6","v":200},null,{"$f":"IF(G2=\"العام\",0,IF(G2=\"العلمي\",20,20))","v":0},{"$f":"IF(G2=\"العام\",0,IF(G2=\"العلمي\",20,20))","v":0},{"$f":"BG6+BH6","v":0},{"$f":"IF(G2=\"العام\",0,IF(G2=\"العلمي\",20,20))","v":0},{"$f":"IF(G2=\"العام\",0,IF(G2=\"العلمي\",20,20))","v":0},{"$f":"BJ6+BK6","v":0},{"$f":"BG6+BJ6","v":0},{"$f":"BH6+BK6","v":0},{"$f":"BM6+BN6","v":0},null,{"$f":"IF(G2=\"العام\",30,IF(G2=\"العلمي\",50,0))","v":30},{"$f":"IF(G2=\"العام\",30,IF(G2=\"العلمي\",50,0))","v":30},{"$f":"BQ6+BR6","v":60},{"$f":"IF(G2=\"العام\",30,IF(G2=\"العلمي\",50,0))","v":30},{"$f":"IF(G2=\"العام\",30,IF(G2=\"العلمي\",50,0))","v":30},{"$f":"BT6+BU6","v":60},{"$f":"BQ6+BT6","v":60},{"$f":"BR6+BU6","v":60},{"$f":"BW6+BX6","v":120},null,{"$f":"IF(G2=\"العام\",30,IF(G2=\"العلمي\",40,0))","v":30},{"$f":"IF(G2=\"العام\",30,IF(G2=\"العلمي\",40,0))","v":30},{"$f":"CA6+CB6","v":60},{"$f":"IF(G2=\"العام\",30,IF(G2=\"العلمي\",40,0))","v":30},{"$f":"IF(G2=\"العام\",30,IF(G2=\"العلمي\",40,0))","v":30},{"$f":"CD6+CE6","v":60},{"$f":"CA6+CD6","v":60},{"$f":"CB6+CE6","v":60},{"$f":"CG6+CH6","v":120},null,{"$f":"IF(G2=\"العام\",30,IF(G2=\"العلمي\",40,0))","v":30},{"$f":"IF(G2=\"العام\",30,IF(G2=\"العلمي\",40,0))","v":30},{"$f":"CK6+CL6","v":60},{"$f":"IF(G2=\"العام\",30,IF(G2=\"العلمي\",40,0))","v":30},{"$f":"IF(G2=\"العام\",30,IF(G2=\"العلمي\",40,0))","v":30},{"$f":"CN6+CO6","v":60},{"$f":"CK6+CN6","v":60},{"$f":"CL6+CO6","v":60},{"$f":"CQ6+CR6","v":120},null,{"$f":"IF(G2=\"العام\",10,IF(G2=\"الأدبي\",20,0))","v":10},{"$f":"IF(G2=\"العام\",10,IF(G2=\"الأدبي\",20,0))","v":10},{"$f":"CU6+CV6","v":20},{"$f":"IF(G2=\"العام\",10,IF(G2=\"الأدبي\",20,0))","v":10},{"$f":"IF(G2=\"العام\",10,IF(G2=\"الأدبي\",20,0))","v":10},{"$f":"CX6+CY6","v":20},{"$f":"CU6+CX6","v":20},{"$f":"CV6+CY6","v":20},{"$f":"DB6+DA6","v":40},null,{"$f":"IF(G2=\"العام\",10,IF(G2=\"الأدبي\",20,0))","v":10},{"$f":"IF(G2=\"العام\",10,IF(G2=\"الأدبي\",20,0))","v":10},{"$f":"DE6+DF6","v":20},{"$f":"IF(G2=\"العام\",10,IF(G2=\"الأدبي\",20,0))","v":10},{"$f":"IF(G2=\"العام\",10,IF(G2=\"الأدبي\",20,0))","v":10},{"$f":"DH6+DI6","v":20},{"$f":"DE6+DH6","v":20},{"$f":"DF6+DI6","v":20},{"$f":"DL6+DK6","v":40},null,20,20,40,20,20,40,40,40,80,null,{"$f":"IF(G2=\"العام\",10,IF(G2=\"الأدبي\",20,0))","v":10},{"$f":"IF(G2=\"العام\",10,IF(G2=\"الأدبي\",20,0))","v":10},{"$f":"DY6+DZ6","v":20},{"$f":"IF(G2=\"العام\",10,IF(G2=\"الأدبي\",20,0))","v":10},{"$f":"IF(G2=\"العام\",10,IF(G2=\"الأدبي\",20,0))","v":10},{"$f":"EB6+EC6","v":20},{"$f":"DY6+EB6","v":20},{"$f":"DZ6+EC6","v":20},{"$f":"EF6+EE6","v":40},null,20,20,40,20,20,40,40,40,80,null,10,10,20,10,10,20,20,20,40]
[]
[null,2,3,4,5,6,7,8,9,10,11,12,13,14,15,16,17,18,19,20,21,22,23,24,25,26,27,28,29,30,31,32,33,34,35,36,37,38,39,40,41,42,43,44,45,46,47,48,49,50,51,52,53,54,55,56,57,58,59,60,61,62,63,64,65,66,67,68,69,70,71,72,73,74,75,76,77,78,79,80,81,82,83,84,85,86,87,88,89,90,91,92,93,94,95,96,97,98,99,100,101,102,103,104,105,106,107,108,109,110,111,112,113,114,115,116,117,118,119,120,121,122,123,124,125,126,127,128,129,130,131,132,133,134,135,136,137,138,139,140,141,142,143,144,145,146,147,148,149,150,151,152,153,154,155,156,157]
[null,{"$f":"IF(C9<>\"\",SUBTOTAL(3,$C$9:C9),\"\")","v":1},"طالب 1","أنثى","2/2","العلمي",null,null,null,null,0,null,null,0,0,0,0,null,null,null,0,null,null,0,0,0,0,null,null,null,0,null,null,0,0,0,0,null,null,null,0,null,null,0,0,0,0,null,null,null,0,null,null,0,0,0,0,null,null,null,0,null,null,0,0,0,0,null,null,null,0,null,null,0,0,0,0,null,null,null,0,null,null,0,0,0,0,null,null,null,0,null,null,0,0,0,0,null,null,null,0,null,null,0,0,0,0,null,null,null,0,null,null,0,0,0,0,null,null,null,0,null,null,0,0,0,0,null,null,null,0,null,null,0,0,0,0,null,null,null,0,null,null,0,0,0,0,null,null,null,0,null,null,0,0,0,0]
[null,{"$f":"IF(C10<>\"\",SUBTOTAL(3,$C$9:C10),\"\")","v":2},"طالب 2","أنثى","1/2","العلمي",null,null,null,null,0,null,null,0,0,0,0,null,null,null,0,null,null,0,0,0,0,null,null,null,0,null,null,0,0,0,0,null,null,null,0,null,null,0,0,0,0,null,null,null,0,null,null,0,0,0,0,null,null,null,0,null,null,0,0,0,0,null,null,null,0,null,null,0,0,0,0,null,null,null,0,null,null,0,0,0,0,null,null,null,0,null,null,0,0,0,0,null,null,null,0,null,null,0,0,0,0,null,null,null,0,null,null,0,0,0,0,null,null,null,0,null,null,0,0,0,0,null,null,null,0,null,null,0,0,0,0,null,null,null,0,null,null,0,0,0,0,null,null,null,0,null,null,0,0,0,0]
[null,{"$f":"IF(C11<>\"\",SUBTOTAL(3,$C$9:C11),\"\")","v":3},"طالب 3","أنثى","1/2","العلمي",null,null,null,null,0,null,null,0,0,0,0,null,null,null,0,null,null,0,0,0,0,null,null,null,0,null,null,0,0,0,0,null,null,null,0,null,null,0,0,0,0,null,null,null,0,null,null,0,0,0,0,null,null,null,0,null,null,0,0,0,0,null,null,null,0,null,null,0,0,0,0,null,null,null,0,null,null,0,0,0,0,null,null,null,0,null,null,0,0,0,0,null,null,null,0,null,null,0,0,0,0,null,null,null,0,null,null,0,0,0,0,null,null,null,0,null,null,0,0,0,0,null,null,null,0,null,null,0,0,0,0,null,null,null,0,null,null,0,0,0,0,null,null,null,0,null,null,0,0,0,0]
[null,{"$f":"IF(C12<>\"\",SUBTOTAL(3,$C$9:C12),\"\")","v":4},"طالب 4","أنثى","10/2","العلمي",null,null,null,null,0,null,null,0,0,0,0,null,null,null,0,null,null,0,0,0,0,null,null,null,0,null,null,0,0,0,0,null,null,null,0,null,null,0,0,0,0,null,null,null,0,null,null,0,0,0,0,null,null,null,0,null,null,0,0,0,0,null,null,null,0,null,null,0,0,0,0,null,null,null,0,null,null,0,0,0,0,null,null,null,0,null,null,0,0,0,0,null,null,null,0,null,null,0,0,0,0,null,null,null,0,null,null,0,0,0,0,null,null,null,0,null,null,0,0,0,0,null,null,null,0,null,null,0,0,0,0,null,null,null,0,null,null,0,0,0,0,null,null,null,0,null,null,0,0,0,0]
[null,{"$f":"IF(C13<>\"\",SUBTOTAL(3,$C$9:C13),\"\")","v":5},"طالب 5","أنثى","5/2","العلمي",null,null,null,null,0,null,null,0,0,0,0,null,null,null,0,null,null,0,0,0,0,null,null,null,0,null,null,0,0,0,0,null,null,null,0,null,null,0,0,0,0,null,null,null,0,null,null,0,0,0,0,null,null,null,0,null,null,0,0,0,0,null,null,null,0,null,null,0,0,0,0,null,null,null,0,null,null,0,0,0,0,null,null,null,0,null,null,0,0,0,0,null,null,null,0,null,null,0,0,0,0,null,null,null,0,null,null,0,0,0,0,null,null,null,0,null,null,0,0,0,0,null,null,null,0,null,null,0,0,0,0,null,null,null,0,null,null,0,0,0,0,null,null,null,0,null,null,0,0,0,0]
[null,{"$f":"IF(C14<>\"\",SUBTOTAL(3,$C$9:C14),\"\")","v":6},"طالب 6","أنثى","1/1","العام",null,null,7,6,13,null,null,0,7,6,13,null,null,null,0,null,null,0,0,0,0,null,null,null,0,null,null,0,0,0,0,null,null,null,0,null,null,0,0,0,0,null,null,null,0,null,null,0,0,0,0,null,null,null,0,null,null,0,0,0,0,null,null,null,0,null,null,0,0,0,0,null,null,null,0,null,null,0,0,0,0,null,null,null,0,null,null,0,0,0,0,null,null,null,0,null,null,0,0,0,0,null,null,null,0,null,null,0,0,0,0,null,null,null,0,null,null,0,0,0,0,null,null,null,0,null,null,0,0,0,0,null,null,null,0,null,null,0,0,0,0,null,null,null,0,null,null,0,0,0,0]
[null,{"$f":"IF(C15<>\"\",SUBTOTAL(3,$C$9:C15),\"\")","v":7},"طالب 7","أنثى","5/1","العام",null,null,7,12,19,null,null,0,7,12,19,null,null,null,0,null,null,0,0,0,0,null,null,null,0,null,null,0,0,0,0,null,null,null,0,null,null,0,0,0,0,null,null,null,0,null,null,0,0,0,0,null,null,null,0,null,null,0,0,0,0,null,null,null,0,null,null,0,0,0,0,null,null,null,0,null,null,0,0,0,0,null,null,null,0,null,null,0,0,0,0,null,null,null,0,null,null,0,0,0,0,null,null,null,0,null,null,0,0,0,0,null,null,null,0,null,null,0,0,0,0,null,null,null,0,null,null,0,0,0,0,null,null,null,0,null,null,0,0,0,0,null,null,null,0,null,null,0,0,0,0]
[null,{"$f":"IF(C16<>\"\",SUBTOTAL(3,$C$9:C16),\"\")","v":8},"طالب 8","أنثى","7/2","العلمي",null,null,null,null,0,null,null,0,0,0,0,null,null,null,0,null,null,0,0,0,0,null,null,null,0,null,null,0,0,0,0,null,null,null,0,null,null,0,0,0,0,null,null,null,0,null,null,0,0,0,0,null,null,null,0,null,null,0,0,0,0,null,null,null,0,null,null,0,0,0,0,null,null,null,0,null,null,0,0,0,0,null,null,null,0,null,null,0,0,0,0,null,null,null,0,null,null,0,0,0,0,null,null,null,0,null,null,0,0,0,0,null,null,null,0,null,null,0,0,0,0,null,null,null,0,null,null,0,0,0,0,null,null,null,0,null,null,0,0,0,0,null,null,null,0,null,null,0,0,0,0]
[null,{"$f":"IF(C17<>\"\",SUBTOTAL(3,$C$9:C17),\"\")","v":9},"طالب 9","أنثى","4/2","العلمي",null,null,null,null,0,null,null,0,0,0,0,null,null,null,0,null,null,0,0,0,0,null,null,null,0,null,null,0,0,0,0,null,null,null,0,null,null,0,0,0,0,null,null,null,0,null,null,0,0,0,0,null,null,null,0,null,null,0,0,0,0,null,null,null,0,null,null,0,0,0,0,null,null,null,0,null,null,0,0,0,0,null,null,null,0,null,null,0,0,0,0,null,null,null,0,null,null,0,0,0,0,null,null,null,0,null,null,0,0,0,0,null,null,null,0,null,null,0,0,0,0,null,null,null,0,null,null,0,0,0,0,null,null,null,0,null,null,0,0,0,0,null,null,null,0,null,null,0,0,0,0]
[null,{"$f":"IF(C18<>\"\",SUBTOTAL(3,$C$9:C18),\"\")","v":10},"طالب 10","أنثى","10/2","العلمي",null,null,null,null,0,null,null,0,0,0,0,null,null,null,0,null,null,0,0,0,0,null,null,null,0,null,null,0,0,0,0,null,null,null,0,null,null,0,0,0,0,null,null,null,0,null,null,0,0,0,0,null,null,null,0,null,null,0,0,0,0,null,null,null,0,null,null,0,0,0,0,null,null,null,0,null,null,0,0,0,0,null,null,null,0,null,null,0,0,0,0,null,null,null,0,null,null,0,0,0,0,null,null,null,0,null,null,0,0,0,0,null,null,null,0,null,null,0,0,0,0,null,null,null,0,null,null,0,0,0,0,null,null,null,0,null,null,0,0,0,0,null,null,null,0,null,null,0,0,0,0]
[null,{"$f":"IF(C19<>\"\",SUBTOTAL(3,$C$9:C19),\"\")","v":11},"طالب 11","أنثى","12/1","العام",null,null,7,9,16,null,null,0,7,9,16,null,null,null,0,null,null,0,0,0,0,null,null,null,0,null,null,0,0,0,0,null,null,null,0,null,null,0,0,0,0,null,null,null,0,null,null,0,0,0,0,null,null,null,0,null,null,0,0,0,0,null,null,null,0,null,null,0,0,0,0,null,null,null,0,null,null,0,0,0,0,null,null,null,0,null,null,0,0,0,0,null,null,null,0,null,null,0,0,0,0,null,null,null,0,null,null,0,0,0,0,null,null,null,0,null,null,0,0,0,0,null,null,null,0,null,null,0,0,0,0,null,null,null,0,null,null,0,0,0,0,null,null,null,0,null,null,0,0,0,0]
[null,{"$f":"IF(C20<>\"\",SUBTOTAL(3,$C$9:C20),\"\")","v":12},"طالب 12","أنثى","5/2","العلمي",null,null,null,null,0,null,null,0,0,0,0,null,null,null,0,null,null,0,0,0,0,null,null,null,0,null,null,0,0,0,0,null,null,null,0,null,null,0,0,0,0,null,null,null,0,null,null,0,0,0,0,null,null,null,0,null,null,0,0,0,0,null,null,null,0,null,null,0,0,0,0,null,null,null,0,null,null,0,0,0,0,null,null,null,0,null,null,0,0,0,0,null,null,null,0,null,null,0,0,0,0,null,null,null,0,null,null,0,0,0,0,null,null,null,0,null,null,0,0,0,0,null,null,null,0,null,null,0,0,0,0,null,null,null,0,null,null,0,0,0,0,null,null,null,0,null,null,0,0,0,0]
[null,{"$f":"IF(C21<>\"\",SUBTOTAL(3,$C$9:C21),\"\")","v":13},"طالب 13","أنثى","6/2","العلمي",null,null,null,null,0,null,null,0,0,0,0,null,null,null,0,null,null,0,0,0,0,null,null,null,0,null,null,0,0,0,0,null,null,null,0,null,null,0,0,0,0,null,null,null,0,null,null,0,0,0,0,null,null,null,0,null,null,0,0,0,0,null,null,null,0,null,null,0,0,0,0,null,null,null,0,null,null,0,0,0,0,null,null,null,0,null,null,0,0,0,0,null,null,null,0,null,null,0,0,0,0,null,null,null,0,null,null,0,0,0,0,null,null,null,0,null,null,0,0,0,0,null,null,null,0,null,null,0,0,0,0,null,null,null,0,null,null,0,0,0,0,null,null,null,0,null,null,0,0,0,0]
[null,{"$f":"IF(C22<>\"\",SUBTOTAL(3,$C$9:C22),\"\")","v":14},"طالب 14","أنثى","1/2","العلمي",null,null,null,null,0,null,null,0,0,0,0,null,null,null,0,null,null,0,0,0,0,null,null,null,0,null,null,0,0,0,0,null,null,null,0,null,null,0,0,0,0,null,null,null,0,null,null,0,0,0,0,null,null,null,0,null,null,0,0,0,0,null,null,null,0,null,null,0,0,0,0,null,null,null,0,null,null,0,0,0,0,null,null,null,0,null,null,0,0,0,0,null,null,null,0,null,null,0,0,0,0,null,null,null,0,null,null,0,0,0,0,null,null,null,0,null,null,0,0,0,0,null,null,null,0,null,null,0,0,0,0,null,null,null,0,null,null,0,0,0,0,null,null,null,0,null,null,0,0,0,0]
[null,{"$f":"IF(C23<>\"\",SUBTOTAL(3,$C$9:C23),\"\")","v":15},"طالب 15","أنثى","7/2","العلمي",null,null,null,null,0,null,null,0,0,0,0,null,null,null,0,null,null,0,0,0,0,null,null,null,0,null,null,0,0,0,0,null,null,null,0,null,null,0,0,0,0,null,null,null,0,null,null,0,0,0,0,null,null,null,0,null,null,0,0,0,0,null,null,null,0,null,null,0,0,0,0,null,null,null,0,null,null,0,0,0,0,null,null,null,0,null,null,0,0,0,0,null,null,null,0,null,null,0,0,0,0,null,null,null,0,null,null,0,0,0,0,null,null,null,0,null,null,0,0,0,0,null,null,null,0,null,null,0,0,0,0,null,null,null,0,null,null,0,0,0,0,null,null,null,0,null,null,0,0,0,0]
[null,{"$f":"IF(C24<>\"\",SUBTOTAL(3,$C$9:C24),\"\")","v":16},"طالب 16","أنثى","2/2","العلمي",null,null,null,null,0,null,null,0,0,0,0,null,null,null,0,null,null,0,0,0,0,null,null,null,0,null,null,0,0,0,0,null,null,null,0,null,null,0,0,0,0,null,null,null,0,null,null,0,0,0,0,null,null,null,0,null,null,0,0,0,0,null,null,null,0,null,null,0,0,0,0,null,null,null,0,null,null,0,0,0,0,null,null,null,0,null,null,0,0,0,0,null,null,null,0,null,null,0,0,0,0,null,null,null,0,null,null,0,0,0,0,null,null,null,0,null,null,0,0,0,0,null,null,null,0,null,null,0,0,0,0,null,null,null,0,null,null,0,0,0,0,null,null,null,0,null,null,0,0,0,0]
[null,{"$f":"IF(C25<>\"\",SUBTOTAL(3,$C$9:C25),\"\")","v":17},"طالب 17","أنثى","2/1","العام",null,null,7,11,18,null,null,0,7,11,18,null,null,null,0,null,null,0,0,0,0,null,null,null,0,null,null,0,0,0,0,null,null,null,0,null,null,0,0,0,0,null,null,null,0,null,null,0,0,0,0,null,null,null,0,null,null,0,0,0,0,null,null,null,0,null,null,0,0,0,0,null,null,null,0,null,null,0,0,0,0,null,null,null,0,null,null,0,0,0,0,null,null,null,0,null,null,0,0,0,0,null,null,null,0,null,null,0,0,0,0,null,null,null,0,null,null,0,0,0,0,null,null,null,0,null,null,0,0,0,0,null,null,null,0,null,null,0,0,0,0,null,null,null,0,null,null,0,0,0,0]
[null,{"$f":"IF(C26<>\"\",SUBTOTAL(3,$C$9:C26),\"\")","v":18},"طالب 18","ذكر","4/1","العام",null,null,null,null,0,null,null,0,0,0,0,null,null,null,0,null,null,0,0,0,0,null,null,null,0,null,null,0,0,0,0,null,null,null,0,null,null,0,0,0,0,null,null,null,0,null,null,0,0,0,0,null,null,null,0,null,null,0,0,0,0,null,null,null,0,null,null,0,0,0,0,null,null,null,0,null,null,0,0,0,0,null,null,null,0,null,null,0,0,0,0,null,null,null,0,null,null,0,0,0,0,null,null,null,0,null,null,0,0,0,0,null,null,null,0,null,null,0,0,0,0,null,null,null,0,null,null,0,0,0,0,null,null,null,0,null,null,0,0,0,0,null,null,null,0,null,null,0,0,0,0]
[null,{"$f":"IF(C27<>\"\",SUBTOTAL(3,$C$9:C27),\"\")","v":19},"طالب 19","ذكر","2/2","العلمي",null,null,null,null,0,null,null,0,0,0,0,null,null,null,0,null,null,0,0,0,0,null,null,null,0,null,null,0,0,0,0,null,null,null,0,null,null,0,0,0,0,null,null,null,0,null,null,0,0,0,0,null,null,null,0,null,null,0,0,0,0,null,null,null,0,null,null,0,0,0,0,null,null,null,0,null,null,0,0,0,0,null,null,null,0,null,null,0,0,0,0,null,null,null,0,null,null,0,0,0,0,null,null,null,0,null,null,0,0,0,0,null,null,null,0,null,null,0,0,0,0,null,null,null,0,null,null,0,0,0,0,null,null,null,0,null,null,0,0,0,0,null,null,null,0,null,null,0,0,0,0]
[null,{"$f":"IF(C28<>\"\",SUBTOTAL(3,$C$9:C28),\"\")","v":20},"طالب 20","ذكر","1/1","العام",null,null,null,null,0,null,null,0,0,0,0,null,null,null,0,null,null,0,0,0,0,null,null,null,0,null,null,0,0,0,0,null,null,null,0,null,null,0,0,0,0,null,null,null,0,null,null,0,0,0,0,null,null,null,0,null,null,0,0,0,0,null,null,null,0,null,null,0,0,0,0,null,null,null,0,null,null,0,0,0,0,null,null,null,0,null,null,0,0,0,0,null,null,null,0,null,null,0,0,0,0,null,null,null,0,null,null,0,0,0,0,null,null,null,0,null,null,0,0,0,0,null,null,null,0,null,null,0,0,0,0,null,null,null,0,null,null,0,0,0,0,null,null,null,0,null,null,0,0,0,0]
[null,{"$f":"IF(C29<>\"\",SUBTOTAL(3,$C$9:C29),\"\")","v":21},"طالب 21","ذكر","5/2","العلمي",null,null,null,null,0,null,null,0,0,0,0,null,null,null,0,null,null,0,0,0,0,null,null,null,0,null,null,0,0,0,0,null,null,null,0,null,null,0,0,0,0,null,null,null,0,null,null,0,0,0,0,null,null,null,0,null,null,0,0,0,0,null,null,null,0,null,null,0,0,0,0,null,null,null,0,null,null,0,0,0,0,null,null,null,0,null,null,0,0,0,0,null,null,null,0,null,null,0,0,0,0,null,null,null,0,null,null,0,0,0,0,null,null,null,0,null,null,0,0,0,0,null,null,null,0,null,null,0,0,0,0,null,null,null,0,null,null,0,0,0,0,null,null,null,0,null,null,0,0,0,0]
[null,{"$f":"IF(C30<>\"\",SUBTOTAL(3,$C$9:C30),\"\")","v":22},"طالب 22","ذكر","6/2","العلمي",null,null,null,null,0,null,null,0,0,0,0,null,null,null,0,null,null,0,0,0,0,null,null,null,0,null,null,0,0,0,0,null,null,null,0,null,null,0,0,0,0,null,null,null,0,null,null,0,0,0,0,null,null,null,0,null,null,0,0,0,0,null,null,null,0,null,null,0,0,0,0,null,null,null,0,null,null,0,0,0,0,null,null,null,0,null,null,0,0,0,0,null,null,null,0,null,null,0,0,0,0,null,null,null,0,null,null,0,0,0,0,null,null,null,0,null,null,0,0,0,0,null,null,null,0,null,null,0,0,0,0,null,null,null,0,null,null,0,0,0,0,null,null,null,0,null,null,0,0,0,0]
[null,{"$f":"IF(C31<>\"\",SUBTOTAL(3,$C$9:C31),\"\")","v":23},"طالب 23","ذكر","4/2","العلمي",null,null,null,null,0,null,null,0,0,0,0,null,null,null,0,null,null,0,0,0,0,null,null,null,0,null,null,0,0,0,0,null,null,null,0,null,null,0,0,0,0,null,null,null,0,null,null,0,0,0,0,null,null,null,0,null,null,0,0,0,0,null,null,null,0,null,null,0,0,0,0,null,null,null,0,null,null,0,0,0,0,null,null,null,0,null,null,0,0,0,0,null,null,null,0,null,null,0,0,0,0,null,null,null,0,null,null,0,0,0,0,null,null,null,0,null,null,0,0,0,0,null,null,null,0,null,null,0,0,0,0,null,null,null,0,null,null,0,0,0,0,null,null,null,0,null,null,0,0,0,0]
[null,{"$f":"IF(C32<>\"\",SUBTOTAL(3,$C$9:C32),\"\")","v":24},"طالب 24","ذكر","1/2","العلمي",null,null,null,null,0,null,null,0,0,0,0,null,null,null,0,null,null,0,0,0,0,null,null,null,0,null,null,0,0,0,0,null,null,null,0,null,null,0,0,0,0,null,null,null,0,null,null,0,0,0,0,null,null,null,0,null,null,0,0,0,0,null,null,null,0,null,null,0,0,0,0,null,null,null,0,null,null,0,0,0,0,null,null,null,0,null,null,0,0,0,0,null,null,null,0,null,null,0,0,0,0,null,null,null,0,null,null,0,0,0,0,null,null,null,0,null,null,0,0,0,0,null,null,null,0,null,null,0,0,0,0,null,null,null,0,null,null,0,0,0,0,null,null,null,0,null,null,0,0,0,0]
[null,{"$f":"IF(C33<>\"\",SUBTOTAL(3,$C$9:C33),\"\")","v":25},"طالب 25","ذكر","2/2","العلمي",null,null,null,null,0,null,null,0,0,0,0,null,null,null,0,null,null,0,0,0,0,null,null,null,0,null,null,0,0,0,0,null,null,null,0,null,null,0,0,0,0,null,null,null,0,null,null,0,0,0,0,null,null,null,0,null,null,0,0,0,0,null,null,null,0,null,null,0,0,0,0,null,null,null,0,null,null,0,0,0,0,null,null,null,0,null,null,0,0,0,0,null,null,null,0,null,null,0,0,0,0,null,null,null,0,null,null,0,0,0,0,null,null,null,0,null,null,0,0,0,0,null,null,null,0,null,null,0,0,0,0,null,null,null,0,null,null,0,0,0,0,null,null,null,0,null,null,0,0,0,0]
[null,{"$f":"IF(C34<>\"\",SUBTOTAL(3,$C$9:C34),\"\")","v":26},"طالب 26","ذكر","3/2","العلمي",null,null,null,null,0,null,null,0,0,0,0,null,null,null,0,null,null,0,0,0,0,null,null,null,0,null,null,0,0,0,0,null,null,null,0,null,null,0,0,0,0,null,null,null,0,null,null,0,0,0,0,null,null,null,0,null,null,0,0,0,0,null,null,null,0,null,null,0,0,0,0,null,null,null,0,null,null,0,0,0,0,null,null,null,0,null,null,0,0,0,0,null,null,null,0,null,null,0,0,0,0,null,null,null,0,null,null,0,0,0,0,null,null,null,0,null,null,0,0,0,0,null,null,null,0,null,null,0,0,0,0,null,null,null,0,null,null,0,0,0,0,null,null,null,0,null,null,0,0,0,0]
[null,{"$f":"IF(C35<>\"\",SUBTOTAL(3,$C$9:C35),\"\")","v":27},"طالب 27","ذكر","4/2","العلمي",null,null,null,null,0,null,null,0,0,0,0,null,null,null,0,null,null,0,0,0,0,null,null,null,0,null,null,0,0,0,0,null,null,null,0,null,null,0,0,0,0,null,null,null,0,null,null,0,0,0,0,null,null,null,0,null,null,0,0,0,0,null,null,null,0,null,null,0,0,0,0,null,null,null,0,null,null,0,0,0,0,null,null,null,0,null,null,0,0,0,0,null,null,null,0,null,null,0,0,0,0,null,null,null,0,null,null,0,0,0,0,null,null,null,0,null,null,0,0,0,0,null,null,null,0,null,null,0,0,0,0,null,null,null,0,null,null,0,0,0,0,null,null,null,0,null,null,0,0,0,0]
[null,{"$f":"IF(C36<>\"\",SUBTOTAL(3,$C$9:C36),\"\")","v":28},"طالب 28","ذكر","5/2","العلمي",null,null,null,null,0,null,null,0,0,0,0,null,null,null,0,null,null,0,0,0,0,null,null,null,0,null,null,0,0,0,0,null,null,null,0,null,null,0,0,0,0,null,null,null,0,null,null,0,0,0,0,null,null,null,0,null,null,0,0,0,0,null,null,null,0,null,null,0,0,0,0,null,null,null,0,null,null,0,0,0,0,null,null,null,0,null,null,0,0,0,0,null,null,null,0,null,null,0,0,0,0,null,null,null,0,null,null,0,0,0,0,null,null,null,0,null,null,0,0,0,0,null,null,null,0,null,null,0,0,0,0,null,null,null,0,null,null,0,0,0,0,null,null,null,0,null,null,0,0,0,0]
[null,{"$f":"IF(C37<>\"\",SUBTOTAL(3,$C$9:C37),\"\")","v":29},"طالب 29","ذكر","6/2","العلمي",null,null,null,null,0,null,null,0,0,0,0,null,null,null,0,null,null,0,0,0,0,null,null,null,0,null,null,0,0,0,0,null,null,null,0,null,null,0,0,0,0,null,null,null,0,null,null,0,0,0,0,null,null,null,0,null,null,0,0,0,0,null,null,null,0,null,null,0,0,0,0,null,null,null,0,null,null,0,0,0,0,null,null,null,0,null,null,0,0,0,0,null,null,null,0,null,null,0,0,0,0,null,null,null,0,null,null,0,0,0,0,null,null,null,0,null,null,0,0,0,0,null,null,null,0,null,null,0,0,0,0,null,null,null,0,null,null,0,0,0,0,null,null,null,0,null,null,0,0,0,0]
[null,{"$f":"IF(C38<>\"\",SUBTOTAL(3,$C$9:C38),\"\")","v":30},"طالب 30","ذكر","4/1","العام",null,null,null,null,0,null,null,0,0,0,0,null,null,null,0,null,null,0,0,0,0,null,null,null,0,null,null,0,0,0,0,null,null,null,0,null,null,0,0,0,0,null,null,null,0,null,null,0,0,0,0,null,null,null,0,null,null,0,0,0,0,null,null,null,0,null,null,0,0,0,0,null,null,null,0,null,null,0,0,0,0,null,null,null,0,null,null,0,0,0,0,null,null,null,0,null,null,0,0,0,0,null,null,null,0,null,null,0,0,0,0,null,null,null,0,null,null,0,0,0,0,null,null,null,0,null,null,0,0,0,0,null,null,null,0,null,null,0,0,0,0,null,null,null,0,null,null,0,0,0,0]
[null,{"$f":"IF(C39<>\"\",SUBTOTAL(3,$C$9:C39),\"\")","v":31},"طالب 31","ذكر","5/1","العام",null,null,null,null,0,null,null,0,0,0,0,null,null,null,0,null,null,0,0,0,0,null,null,null,0,null,null,0,0,0,0,null,null,null,0,null,null,0,0,0,0,null,null,null,0,null,null,0,0,0,0,null,null,null,0,null,null,0,0,0,0,null,null,null,0,null,null,0,0,0,0,null,null,null,0,null,null,0,0,0,0,null,null,null,0,null,null,0,0,0,0,null,null,null,0,null,null,0,0,0,0,null,null,null,0,null,null,0,0,0,0,null,null,null,0,null,null,0,0,0,0,null,null,null,0,null,null,0,0,0,0,null,null,null,0,null,null,0,0,0,0,null,null,null,0,null,null,0,0,0,0]
[null,{"$f":"IF(C40<>\"\",SUBTOTAL(3,$C$9:C40),\"\")","v":32},"طالب 32","ذكر","3/1","العام",null,null,null,null,0,null,null,0,0,0,0,null,null,null,0,null,null,0,0,0,0,null,null,null,0,null,null,0,0,0,0,null,null,null,0,null,null,0,0,0,0,null,null,null,0,null,null,0,0,0,0,null,null,null,0,null,null,0,0,0,0,null,null,null,0,null,null,0,0,0,0,null,null,null,0,null,null,0,0,0,0,null,null,null,0,null,null,0,0,0,0,null,null,null,0,null,null,0,0,0,0,null,null,null,0,null,null,0,0,0,0,null,null,null,0,null,null,0,0,0,0,null,null,null,0,null,null,0,0,0,0,null,null,null,0,null,null,0,0,0,0,null,null,null,0,null,null,0,0,0,0]
[null,{"$f":"IF(C41<>\"\",SUBTOTAL(3,$C$9:C41),\"\")","v":33},"طالب 33","ذكر","2/1","العام",null,null,5,5,10,null,null,0,0,0,0,null,null,null,null,null,null,0,0,0,0,null,null,null,null,null,null,0,0,0,0,null,null,null,null,null,null,0,0,0,0,null,null,null,null,null,null,0,0,0,0,null,null,null,null,null,null,0,0,0,0,null,null,null,null,null,null,0,0,0,0,null,null,null,null,null,null,0,0,0,0,null,null,null,null,null,null,0,0,0,0,null,null,null,null,null,null,0,0,0,0,null,null,null,null,null,null,0,0,0,0,null,null,null,null,null,null,0,0,0,0,null,null,null,null,null,null,0,0,0,0,null,null,null,null,null,null,0,0,0,0,null,null,null,0,null,null,0,0,0,0]
[null,{"$f":"IF(C42<>\"\",SUBTOTAL(3,$C$9:C42),\"\")","v":34},"طالب 34","ذكر","2/1","العام",null,null,null,null,0,null,null,0,0,0,0,null,null,null,0,null,null,0,0,0,0,null,null,null,0,null,null,0,0,0,0,null,null,null,0,null,null,0,0,0,0,null,null,null,0,null,null,0,0,0,0,null,null,null,0,null,null,0,0,0,0,null,null,null,0,null,null,0,0,0,0,null,null,null,0,null,null,0,0,0,0,null,null,null,0,null,null,0,0,0,0,null,null,null,0,null,null,0,0,0,0,null,null,null,0,null,null,0,0,0,0,null,null,null,0,null,null,0,0,0,0,null,null,null,0,null,null,0,0,0,0,null,null,null,0,null,null,0,0,0,0,null,null,null,0,null,null,0,0,0,0]
[null,{"$f":"IF(C43<>\"\",SUBTOTAL(3,$C$9:C43),\"\")","v":35},"طالب 35","ذكر","5/1","العام",null,null,null,null,0,null,null,0,0,0,0,null,null,null,0,null,null,0,0,0,0,null,null,null,0,null,null,0,0,0,0,null,null,null,0,null,null,0,0,0,0,null,null,null,0,null,null,0,0,0,0,null,null,null,0,null,null,0,0,0,0,null,null,null,0,null,null,0,0,0,0,null,null,null,0,null,null,0,0,0,0,null,null,null,0,null,null,0,0,0,0,null,null,null,0,null,null,0,0,0,0,null,null,null,0,null,null,0,0,0,0,null,null,null,0,null,null,0,0,0,0,null,null,null,0,null,null,0,0,0,0,null,null,null,0,null,null,0,0,0,0,null,null,null,0,null,null,0,0,0,0]
[null,{"$f":"IF(C44<>\"\",SUBTOTAL(3,$C$9:C44),\"\")","v":36},"طالب 36","ذكر","6/1","العام",null,null,null,null,0,null,null,0,0,0,0,null,null,null,0,null,null,0,0,0,0,null,null,null,0,null,null,0,0,0,0,null,null,null,0,null,null,0,0,0,0,null,null,null,0,null,null,0,0,0,0,null,null,null,0,null,null,0,0,0,0,null,null,null,0,null,null,0,0,0,0,null,null,null,0,null,null,0,0,0,0,null,null,null,0,null,null,0,0,0,0,null,null,null,0,null,null,0,0,0,0,null,null,null,0,null,null,0,0,0,0,null,null,null,0,null,null,0,0,0,0,null,null,null,0,null,null,0,0,0,0,null,null,null,0,null,null,0,0,0,0,null,null,null,0,null,null,0,0,0,0]
[null,{"$f":"IF(C45<>\"\",SUBTOTAL(3,$C$9:C45),\"\")","v":37},"طالب 37","ذكر","1/2","العلمي",null,null,null,null,0,null,null,0,0,0,0,null,null,null,0,null,null,0,0,0,0,null,null,null,0,null,null,0,0,0,0,null,null,null,0,null,null,0,0,0,0,null,null,null,0,null,null,0,0,0,0,null,null,null,0,null,null,0,0,0,0,null,null,null,0,null,null,0,0,0,0,null,null,null,0,null,null,0,0,0,0,null,null,null,0,null,null,0,0,0,0,null,null,null,0,null,null,0,0,0,0,null,null,null,0,null,null,0,0,0,0,null,null,null,0,null,null,0,0,0,0,null,null,null,0,null,null,0,0,0,0,null,null,null,0,null,null,0,0,0,0,null,null,null,0,null,null,0,0,0,0]
[null,{"$f":"IF(C46<>\"\",SUBTOTAL(3,$C$9:C46),\"\")","v":38},"طالب 38","ذكر","2/2","العلمي",null,null,null,null,0,null,null,0,0,0,0,null,null,null,0,null,null,0,0,0,0,null,null,null,0,null,null,0,0,0,0,null,null,null,0,null,null,0,0,0,0,null,null,null,0,null,null,0,0,0,0,null,null,null,0,null,null,0,0,0,0,null,null,null,0,null,null,0,0,0,0,null,null,null,0,null,null,0,0,0,0,null,null,null,0,null,null,0,0,0,0,null,null,null,0,null,null,0,0,0,0,null,null,null,0,null,null,0,0,0,0,null,null,null,0,null,null,0,0,0,0,null,null,null,0,null,null,0,0,0,0,null,null,null,0,null,null,0,0,0,0,null,null,null,0,null,null,0,0,0,0]
[null,{"$f":"IF(C47<>\"\",SUBTOTAL(3,$C$9:C47),\"\")","v":39},"طالب 39","ذكر","3/2","العلمي",null,null,null,null,0,null,null,0,0,0,0,null,null,null,0,null,null,0,0,0,0,null,null,null,0,null,null,0,0,0,0,null,null,null,0,null,null,0,0,0,0,null,null,null,0,null,null,0,0,0,0,null,null,null,0,null,null,0,0,0,0,null,null,null,0,null,null,0,0,0,0,null,null,null,0,null,null,0,0,0,0,null,null,null,0,null,null,0,0,0,0,null,null,null,0,null,null,0,0,0,0,null,null,null,0,null,null,0,0,0,0,null,null,null,0,null,null,0,0,0,0,null,null,null,0,null,null,0,0,0,0,null,null,null,0,null,null,0,0,0,0,null,null,null,0,null,null,0,0,0,0]
[null,{"$f":"IF(C48<>\"\",SUBTOTAL(3,$C$9:C48),\"\")","v":40},"طالب 40","ذكر","4/2","العلمي",null,null,null,null,0,null,null,0,0,0,0,null,null,null,0,null,null,0,0,0,0,null,null,null,0,null,null,0,0,0,0,null,null,null,0,null,null,0,0,0,0,null,null,null,0,null,null,0,0,0,0,null,null,null,0,null,null,0,0,0,0,null,null,null,0,null,null,0,0,0,0,null,null,null,0,null,null,0,0,0,0,null,null,null,0,null,null,0,0,0,0,null,null,null,0,null,null,0,0,0,0,null,null,null,0,null,null,0,0,0,0,null,null,null,0,null,null,0,0,0,0,null,null,null,0,null,null,0,0,0,0,null,null,null,0,null,null,0,0,0,0,null,null,null,0,null,null,0,0,0,0]
[null,{"$f":"IF(C49<>\"\",SUBTOTAL(3,$C$9:C49),\"\")","v":41},"طالب 41","ذكر","2/1","العام",null,null,null,null,0,null,null,0,0,0,0,null,null,null,0,null,null,0,0,0,0,null,null,null,0,null,null,0,0,0,0,null,null,null,0,null,null,0,0,0,0,null,null,null,0,null,null,0,0,0,0,null,null,null,0,null,null,0,0,0,0,null,null,null,0,null,null,0,0,0,0,null,null,null,0,null,null,0,0,0,0,null,null,null,0,null,null,0,0,0,0,null,null,null,0,null,null,0,0,0,0,null,null,null,0,null,null,0,0,0,0,null,null,null,0,null,null,0,0,0,0,null,null,null,0,null,null,0,0,0,0,null,null,null,0,null,null,0,0,0,0,null,null,null,0,null,null,0,0,0,0]
[null,{"$f":"IF(C50<>\"\",SUBTOTAL(3,$C$9:C50),\"\")","v":42},"طالب 42","ذكر","5/2","العلمي",null,null,null,null,0,null,null,0,0,0,0,null,null,null,0,null,null,0,0,0,0,null,null,null,0,null,null,0,0,0,0,null,null,null,0,null,null,0,0,0,0,null,null,null,0,null,null,0,0,0,0,null,null,null,0,null,null,0,0,0,0,null,null,null,0,null,null,0,0,0,0,null,null,null,0,null,null,0,0,0,0,null,null,null,0,null,null,0,0,0,0,null,null,null,0,null,null,0,0,0,0,null,null,null,0,null,null,0,0,0,0,null,null,null,0,null,null,0,0,0,0,null,null,null,0,null,null,0,0,0,0,null,null,null,0,null,null,0,0,0,0,null,null,null,0,null,null,0,0,0,0]
[null,{"$f":"IF(C51<>\"\",SUBTOTAL(3,$C$9:C51),\"\")","v":43},"طالب 43","ذكر","7/1","العام",null,null,null,null,0,null,null,0,0,0,0,null,null,null,0,null,null,0,0,0,0,null,null,null,0,null,null,0,0,0,0,null,null,null,0,null,null,0,0,0,0,null,null,null,0,null,null,0,0,0,0,null,null,null,0,null,null,0,0,0,0,null,null,null,0,null,null,0,0,0,0,null,null,null,0,null,null,0,0,0,0,null,null,null,0,null,null,0,0,0,0,null,null,null,0,null,null,0,0,0,0,null,null,null,0,null,null,0,0,0,0,null,null,null,0,null,null,0,0,0,0,null,null,null,0,null,null,0,0,0,0,null,null,null,0,null,null,0,0,0,0,null,null,null,0,null,null,0,0,0,0]
[null,{"$f":"IF(C52<>\"\",SUBTOTAL(3,$C$9:C52),\"\")","v":44},"طالب 44","ذكر","6/1","العام",null,null,null,null,0,null,null,0,0,0,0,null,null,null,0,null,null,0,0,0,0,null,null,null,0,null,null,0,0,0,0,null,null,null,0,null,null,0,0,0,0,null,null,null,0,null,null,0,0,0,0,null,null,null,0,null,null,0,0,0,0,null,null,null,0,null,null,0,0,0,0,null,null,null,0,null,null,0,0,0,0,null,null,null,0,null,null,0,0,0,0,null,null,null,0,null,null,0,0,0,0,null,null,null,0,null,null,0,0,0,0,null,null,null,0,null,null,0,0,0,0,null,null,null,0,null,null,0,0,0,0,null,null,null,0,null,null,0,0,0,0,null,null,null,0,null,null,0,0,0,0]
[null,{"$f":"IF(C53<>\"\",SUBTOTAL(3,$C$9:C53),\"\")","v":45},"طالب 45","ذكر","3/1","العام",null,null,null,null,0,null,null,0,0,0,0,null,null,null,0,null,null,0,0,0,0,null,null,null,0,null,null,0,0,0,0,null,null,null,0,null,null,0,0,0,0,null,null,null,0,null,null,0,0,0,0,null,null,null,0,null,null,0,0,0,0,null,null,null,0,null,null,0,0,0,0,null,null,null,0,null,null,0,0,0,0,null,null,null,0,null,null,0,0,0,0,null,null,null,0,null,null,0,0,0,0,null,null,null,0,null,null,0,0,0,0,null,null,null,0,null,null,0,0,0,0,null,null,null,0,null,null,0,0,0,0,null,null,null,0,null,null,0,0,0,0,null,null,null,0,null,null,0,0,0,0]
[null,{"$f":"IF(C54<>\"\",SUBTOTAL(3,$C$9:C54),\"\")","v":46},"طالب 46","ذكر","6/2","العلمي",null,null,null,null,0,null,null,0,0,0,0,null,null,null,0,null,null,0,0,0,0,null,null,null,0,null,null,0,0,0,0,null,null,null,0,null,null,0,0,0,0,null,null,null,0,null,null,0,0,0,0,null,null,null,0,null,null,0,0,0,0,null,null,null,0,null,null,0,0,0,0,null,null,null,0,null,null,0,0,0,0,null,null,null,0,null,null,0,0,0,0,null,null,null,0,null,null,0,0,0,0,null,null,null,0,null,null,0,0,0,0,null,null,null,0,null,null,0,0,0,0,null,null,null,0,null,null,0,0,0,0,null,null,null,0,null,null,0,0,0,0,null,null,null,0,null,null,0,0,0,0]
[null,{"$f":"IF(C55<>\"\",SUBTOTAL(3,$C$9:C55),\"\")","v":47},"طالب 47","ذكر","3/1","العام",null,null,null,null,0,null,null,0,0,0,0,null,null,null,0,null,null,0,0,0,0,null,null,null,0,null,null,0,0,0,0,null,null,null,0,null,null,0,0,0,0,null,null,null,0,null,null,0,0,0,0,null,null,null,0,null,null,0,0,0,0,null,null,null,0,null,null,0,0,0,0,null,null,null,0,null,null,0,0,0,0,null,null,null,0,null,null,0,0,0,0,null,null,null,0,null,null,0,0,0,0,null,null,null,0,null,null,0,0,0,0,null,null,null,0,null,null,0,0,0,0,null,null,null,0,null,null,0,0,0,0,null,null,null,0,null,null,0,0,0,0,null,null,null,0,null,null,0,0,0,0]
[null,{"$f":"IF(C56<>\"\",SUBTOTAL(3,$C$9:C56),\"\")","v":48},"طالب 48","ذكر","5/1","العام",null,null,null,null,0,null,null,0,0,0,0,null,null,null,0,null,null,0,0,0,0,null,null,null,0,null,null,0,0,0,0,null,null,null,0,null,null,0,0,0,0,null,null,null,0,null,null,0,0,0,0,null,null,null,0,null,null,0,0,0,0,null,null,null,0,null,null,0,0,0,0,null,null,null,0,null,null,0,0,0,0,null,null,null,0,null,null,0,0,0,0,null,null,null,0,null,null,0,0,0,0,null,null,null,0,null,null,0,0,0,0,null,null,null,0,null,null,0,0,0,0,null,null,null,0,null,null,0,0,0,0,null,null,null,0,null,null,0,0,0,0,null,null,null,0,null,null,0,0,0,0]
[null,{"$f":"IF(C57<>\"\",SUBTOTAL(3,$C$9:C57),\"\")","v":49},"طالب 49","ذكر","5/1","العام",null,null,null,null,0,null,null,0,0,0,0,null,null,null,0,null,null,0,0,0,0,null,null,null,0,null,null,0,0,0,0,null,null,null,0,null,null,0,0,0,0,null,null,null,0,null,null,0,0,0,0,null,null,null,0,null,null,0,0,0,0,null,null,null,0,null,null,0,0,0,0,null,null,null,0,null,null,0,0,0,0,null,null,null,0,null,null,0,0,0,0,null,null,null,0,null,null,0,0,0,0,null,null,null,0,null,null,0,0,0,0,null,null,null,0,null,null,0,0,0,0,null,null,null,0,null,null,0,0,0,0,null,null,null,0,null,null,0,0,0,0,null,null,null,0,null,null,0,0,0,0]
[null,{"$f":"IF(C58<>\"\",SUBTOTAL(3,$C$9:C58),\"\")","v":50},"طالب 50","أنثى","11/1","العام",null,null,6,6,12,null,null,0,6,6,12,null,null,null,0,null,null,0,0,0,0,null,null,null,0,null,null,0,0,0,0,null,null,null,0,null,null,0,0,0,0,null,null,null,0,null,null,0,0,0,0,null,null,null,0,null,null,0,0,0,0,null,null,null,0,null,null,0,0,0,0,null,null,null,0,null,null,0,0,0,0,null,null,null,0,null,null,0,0,0,0,null,null,null,0,null,null,0,0,0,0,null,null,null,0,null,null,0,0,0,0,null,null,null,0,null,null,0,0,0,0,null,null,null,0,null,null,0,0,0,0,null,null,null,0,null,null,0,0,0,0,null,null,null,0,null,null,0,0,0,0]
[]
[]
[]
[]
[]
[]
[]
[]
[]
[]
[]
[]
[]
[]
[]
[]
[]
[]
[]
[]
[]
[]
[]
[]
[]
[]
[]
[]
[]
[]
[]
[]
[]
[]
[]
[]
[]
[]
[]
[]
[]
[]
[]
[]
[]
[]
[]
[]
[]
[]
[]
[]
[]
[]
[]
[]
[]
[]
[]
[]
[]
[]
[]
[]
[]
[]
[]
[]
[]
[]
[]
[]
[]
[]
[]
[]
[]
[]
[]
[]
[]
[]
[]
[]
[]
[]
[]
[]
[]
[]
[]
[]
[]
[]
[]
[]
[]
[]
[]
[]
[]
[]
[]
[]
[]
[]
[]
[]
[]
[]
[]
[]
[]
[]
[]
[]
[]
[]
[]
[]
[]
[]
[]
[]
[]
[]
[]
[]
[]
[]
[]
[]
[]
[]
[]
[]
[]
[]
[]
[]
[]
[]
[]
[]
[]
[]
[]
[]
[]
[]
[]
[]
[]
[]
[]
[]
[]
[]
[]
[]
[]
[]
[]
[]
[]
[]
[]
[]
[]
[]
[]
[]
[]
[]
[]
[]
[]
[]
[]
[]
[]
[]
[]
[]
[]
[]
[]
[]
[]
[]
[]
[]
[]
[]
[]
[]
[]
[]
[]
[]
[]
[]
[]
[]
[]
[]
[]
[]
[]
[]
[]
[]
[]
[]
[]
[]
[]
[]
[]
[]
[]
[]
[]
[]
[]
[]
[]
[]
[]
[]
[]
[]
[]
[]
[]
[]
[]
[]
[]
[]
[]
[]
[]
[]
[]
[]
[]
[]
[]
[]
[]
[]
[]
[]
[]
[]
[]
[]
[]
[]
[]
[]
[]
[]
[]
[]
[]
[]
[]
[]
[]
[]
[]
[]
[]
[]
[]
[]
[]
[]
[]
[]
[]
[]
[]
[]
[]
[]
[]
[]
[]
[]
[]
[]
[]
[]
[]
[]
[]
[]
[]
[]
[]
[]
[]
[]
[]
[]
[]
[]
[]
[]
[]
[]
[]
[]
[]
[]
[]
[]
[]
[]
[]
[]
[]
[]
[]
[]
[]
[]
[]
[]
[]
[]
[]
[]
[]
[]
[]
[]
[]
[]
[]
[]
[]
[]
[]
[]
[]
[]
[]
[]
[]
[]
[]
[]
[]
[]
[]
[]
[]
[]
[]
[]
[]
[]
[]
[]
[]
[]
[]
[]
[]
[]
[]
[]
[]
[]
[]
[]
[]
[]
[]
[]
[]
[]
[]
[]
[]
[]
[]
[]
[]
[]
[]
[]
[]
[]
[]
[]
[]
[]
[]
[]
[]
[]
[]
[]
[]
[]
[]
[]
[]
[]
[]
[]
[]
[]
[]
[]
[]
[]
[]
[]
[]
[]
[]
[]
[]
[]
[]
[]
[]
[]
[]
[]
[]
[]
[]
[]
[]
[]
[]
[]
[]
[]
[]
[]
[]
[]
[]
[]
[]
[]
[]
[]
[]
[]
[]
[]
[]
[]
[]
[]
[]
[]
[]
[]
[]
[]
[]
[]
[]
[]
[]
[]
[]
[]
[]
[]
[]
[]
[]
[]
[]
[]
[]
[]
[]
[]
[]
[]
[]
[]
[]
[]
[]
[]
[]
[]
[]
[]
[]
[]
[]
[]
[]
[]
[]
[]
[]
[]
[]
[]
[]
[]
[]
[]
[]
[]
[]
[]
[]
[]
[]
[]
[]
[]
[]
[]
[]
[]
[]
[]
[]
[]
[]
[]
[]
[]
[]
[]
[]
[]
[]
[]
[]
[]
[]
[]
[]
[]
[]
[]
[]
[]
[]
[]
[]
[]
[]
[]
[]
[]
[]
[]
[]
[]
[]
[]
[]
[]
[]
[]
[]
[]
[]
[]
[]
[]
[]
[]
[]
[]
[]
[]
[]
[]
[]
[]
[]
[]
[]
[]
[]
[]
[]
[]
[]
[]
[]
[]
[]
[]
[]
[]
[]
[]
[]
[]
[]
[]
[]
[]
[]
[]
[]
[]
[]
[]
[]
[]
[]
[]
[]
[]
[]
[]
[]
[]
[]
[]
[]
[]
[]
[]
[]
[]
[]
[]
[]
[]
[]
[]
[]
[]
[]
[]
[]
[]
[]
[]
[]
[]
[]
[]
[]
[]
[]
[]
[]
[]
[]
[]
[]
[]
[]
[]
[]
[]
[]
[]
[]
[]
[]
[]
[]
[]
[]
[]
[]
[]
[]
[]
[]
[]
[]
[]
[]
[]
[]
[]
[]
[]
[]
[]
[]
[]
[]
[]
[]
[]
[]
[]
[]
[]
[]
[]
[]
[]
[]
[]
[]
[]
[]
[]
[]
[]
[]
[]
[]
[]
[]
[]
[]
[]
[]
[]
[]
[]
[]
[]
[]
[]
[]
[]
[]
[]
[]
[]
[]
[]
[]
[]
[]
[]
[]
[]
[]
[]
[]
[]
[]
[]
[]
[]
[]
[]
[]
[]
[]
[]
[]
[]
[]
[]
[]
[]
[]
[]
[]
[]
[]
[]
[]
[]
[]
[]
[]
[]
[]
[]
[]
[]
[]
[]
[]
[]
[]
[]
[]
[]
[]
[]
[]
[]
[]
[]
[]
[]
[]
[]
[]
[]
[]
[]
[]
[]
[]
[]
[]
[]
[]
[]
[]
[]
[]
[]
[]
[]
[]
[null,{"$f":"IF(C880<>\"\",SUBTOTAL(3,$C$9:C880),\"\")","v":""}]
[null,{"$f":"IF(C881<>\"\",SUBTOTAL(3,$C$9:C881),\"\")","v":""}]
[]
[]
[]
[]
[]
[]
[]
[]
[]
[]
[null,{"$f":"IF(C892<>\"\",SUBTOTAL(3,$C$9:C892),\"\")","v":""}]

{"sheet":"ورقة2","index":1,"n_rows":17,"n_cols":1,"rows_kept":17,"cut":false,"hidden":false,"merged":[]}
["التربية الإسلامية"]
["اللغة العربية"]
["الكتابة"]
["اللغة الإنجليزية"]
["تقنية المعلومات"]
["الرياضيات"]
["الإحصاء"]
["العلوم"]
["الفيزياء"]
["الكيمياء"]
["الاحياء"]
["الاجتماعيات"]
["التاريخ"]
["الجغرافيا"]
["الفلسفة"]
["علم الاجتماع"]
["علم النفس"]